[Event "Asian Amateur Rapid Women 2024"]
[Site "Al Ain"]
[Date "2024.12.15"]
[Round "3.3"]
[White "Asudani Ruhani Raj"]
[Black "Ahlam Rashed"]
[Result "1-0"]
[ECO "E44"]
[WhiteElo "1613"]
[BlackElo "1987"]
[Annotator "RC"]
[PlyCount "127"]
[EventDate "2024.12.15"]
[EventType "swiss"]
[EventCountry "UAE"]
[SourceTitle "playchess.com"]
[Source "ChessBase"]
[SourceQuality "1"]
[TimeControl "900+10"]

1. d4 {[%emt 0:00:06]} Nf6 {[%emt 0:00:01]} 2. c4 {[%emt 0:00:01]} e6 {[%emt 0:00:01]} 3. Nc3 {[%emt 0:00:02]} Bb4 {[%emt 0:00:02]} 4. e3 {[%emt 0:00:01]} b6 {[%emt 0:00:01]} 5. Nge2 {[%emt 0:00:02]} Ne4 {[%emt 0:00:03]} 6. Qc2 {[%emt 0:00:05]} Bb7 {[%emt 0:00:17]} 7. a3 {[%emt 0:00:03]} Bxc3+ {[%emt 0:00:15]} 8. Nxc3 {[%emt 0:00:02]} Nxc3 {[%emt 0:00:08]} 9. Qxc3 {[%emt 0:00:07]} d6 {[%emt 0:00:31]} 10. d5 {[%emt 0:00:29]} e5 {[%emt 0:00:05]} 11. Bd3 {[%emt 0:00:09]} O-O {[%emt 0:01:19]} 12. O-O {[%emt 0:00:06]} Nd7 {[%emt 0:00:12]} 13. f4 {[%emt 0:01:28]} Nc5 {[%emt 0:02:32]} 14. fxe5 {[%emt 0:00:22]} Nxd3 {[%emt 0:00:07]} 15. Qxd3 {[%emt 0:00:03]} dxe5 {[%emt 0:00:05]} 16. Qf5 {[%emt 0:00:22]} Qd6 {[%emt 0:00:46]} 17. Bd2 {[%emt 0:00:37]} Bc8 {[%emt 0:00:45]} 18. Qf3 {[%emt 0:00:36]} a5 {[%emt 0:00:51]} 19. Rac1 {[%emt 0:01:54]} Qg6 {[%emt 0:03:21]} 20. Kh1 {[%emt 0:03:29]} Bb7 {[%emt 0:02:27]} 21. e4 {[%emt 0:01:12]} Bc8 {[%emt 0:01:05]} 22. c5 {[%emt 0:01:13]} b5 {[%emt 0:01:08]} 23. Bc3 {[%emt 0:01:54]} Re8 {[%emt 0:01:22]} 24. h3 {[%emt 0:02:09]} Ra6 {[%emt 0:00:11]} 25. Qd3 {[%emt 0:00:20]} Ra8 {[%emt 0:01:26]} 26. Rf3 {[%emt 0:00:51]} Qh6 {[%emt 0:00:07]} 27. Bd2 {[%emt 0:00:17]} Qh5 {[%emt 0:00:07]} 28. d6 {[%emt 0:00:35]} cxd6 {[%emt 0:00:08]} 29. cxd6 {[%emt 0:00:04]} Rd8 {[%emt 0:00:14]} 30. Rc7 {[%emt 0:00:15]} Bd7 {[%emt 0:00:05]} 31. Qd5 {[%emt 0:00:13]} Rab8 {[%emt 0:00:11]} 32. Bxa5 {[%emt 0:00:04]} Be6 {[%emt 0:00:05]} 33. Qd2 {[%emt 0:00:11]} Rd7 {[%emt 0:00:03]} 34. Qc2 {[%emt 0:00:20]} Rxd6 {[%emt 0:00:06]} 35. Rc5 {[%emt 0:00:25]} Qg5 {[%emt 0:00:20]} 36. Rf2 {[%emt 0:00:25]} Qg3 {[%emt 0:00:18]} 37. Bc7 {[%emt 0:00:05]} Bxh3 {[%emt 0:00:21]} 38. Bxd6 {[%emt 0:00:05]} Bxg2+ {[%emt 0:00:08]} 39. Rxg2 {[%emt 0:00:03]} Qe1+ {[%emt 0:00:04]} 40. Rg1 {[%emt 0:00:08]} Qh4+ {[%emt 0:00:02]} 41. Kg2 {[%emt 0:00:08]} Qg4+ {[%emt 0:00:06]} 42. Kf1 {[%emt 0:00:10]} Qf3+ {[%emt 0:00:05]} 43. Qf2 {[%emt 0:00:12]} Qd3+ {[%emt 0:00:10]} 44. Kg2 {[%emt 0:00:13]} Qxd6 {[%emt 0:00:07]} 45. Rgc1 {[%emt 0:00:31]} Qg6+ {[%emt 0:00:02]} 46. Kf3 {[%emt 0:00:06]} Qh5+ {[%emt 0:00:09]} 47. Ke3 {[%emt 0:00:05]} Qh6+ {[%emt 0:00:05]} 48. Ke2 {[%emt 0:00:06]} Qh5+ {[%emt 0:00:03]} 49. Qf3 {[%emt 0:00:10]} Qh2+ {[%emt 0:00:01]} 50. Qf2 {[%emt 0:00:11]} Qh5+ {[%emt 0:00:03]} 51. Kd2 {[%emt 0:00:17]} Qg4 {[%emt 0:00:28]} 52. Qe3 {[%emt 0:00:23]} Rd8+ {[%emt 0:00:06]} 53. Kc3 {[%emt 0:00:05]} h5 {[%emt 0:00:59]} 54. Rg1 {[%emt 0:00:08]} Qd7 {[%emt 0:00:11]} 55. Rxe5 {[%emt 0:00:17]} b4+ {[%emt 0:00:13]} 56. axb4 {[%emt 0:00:10]} Rc8+ {[%emt 0:00:09]} 57. Rc5 {[%emt 0:00:02]} Rd8 {[%emt 0:00:04]} 58. Rxh5 {[%emt 0:00:22]} Qc6+ {[%emt 0:00:05]} 59. Rc5 {[%emt 0:00:03]} Qf6+ {[%emt 0:00:01]} 60. Kc2 {[%emt 0:00:12]} Qa6 {[%emt 0:00:07]} 61. Rxg7+ {[%emt 0:00:10]} Kh8 {[%emt 0:00:35]} 62. Rg1 {[%emt 0:00:21]} Qa4+ {[%emt 0:00:02]} 63. Kc3 {[%emt 0:00:09]} f5 {[%emt 0:00:16]} 64. Qh6# {[%emt 0:00:01]} 1-0

[Event "Asian Amateur Rapid Women 2024"]
[Site "Al Ain"]
[Date "2024.12.15"]
[Round "3.4"]
[White "Anoud Eisa Mohamed"]
[Black "Mariam Khalifa AlQubaisi"]
[Result "1-0"]
[ECO "C84"]
[WhiteElo "1884"]
[BlackElo "1438"]
[Annotator "NA RC"]
[PlyCount "53"]
[EventDate "2024.12.15"]
[EventType "swiss"]
[EventCountry "UAE"]
[SourceTitle "playchess.com"]
[Source "ChessBase"]
[SourceQuality "1"]
[TimeControl "900+10"]

1. e4 {[%emt 0:00:07]} e5 {[%emt 0:00:01]} 2. Nf3 {[%emt 0:00:03]} Nc6 {[%emt 0:00:01]} 3. Bb5 {[%emt 0:00:02]} a6 {[%emt 0:00:02]} 4. Ba4 {[%emt 0:00:02]} Nf6 {[%emt 0:00:01]} 5. d3 {[%emt 0:00:01]} b5 {[%emt 0:00:09]} 6. Bb3 {[%emt 0:00:01]} Be7 {[%emt 0:00:04]} 7. O-O {[%emt 0:00:07]} O-O {[%emt 0:00:02]} 8. Nbd2 {[%emt 0:00:05]} d5 {[%emt 0:00:13]} 9. Re1 {[%emt 0:00:35]} d4 {[%emt 0:00:58]} 10. a4 {[%emt 0:00:21]} Bb7 {[%emt 0:15:19]} 11. Nf1 {[%emt 0:00:17]} Nb4 {[%emt 0:00:00]} 12. Nxe5 {[%emt 0:00:27]} Qd6 {[%emt 0:00:00]} 13. Bf4 {[%emt 0:00:09]} Qc5 {[%emt 0:00:00]} 14. Ng4 {[%emt 0:05:30]} Rad8 {[%emt 0:00:00]} 15. Ng3 {[%emt 0:01:01]} Bc6 {[%emt 0:00:00]} 16. axb5 {[%emt 0:00:18]} Bxb5 {[%emt 0:00:00]} 17. Nxf6+ {[%emt 0:00:40]} Bxf6 {[%emt 0:00:00]} 18. e5 {[%emt 0:00:12]} Be7 {[%emt 0:00:00]} 19. Qg4 {[%emt 0:01:31]} Kh8 {[%emt 0:00:00]} 20. Nh5 {[%emt 0:01:06]} g6 {[%emt 0:00:00]} 21. Bh6 {[%emt 0:00:23]} Rg8 {[%emt 0:00:00]} 22. Nf6 {[%emt 0:00:19]} Bxf6 {[%emt 0:00:00]} 23. exf6 {[%emt 0:00:02]} Rge8 {[%emt 0:00:00]} 24. Bxf7 {[%emt 0:00:05]} Rxe1+ {[%emt 0:00:00]} 25. Rxe1 {[%emt 0:05:56]} Rg8 {[%emt 0:00:00]} 26. Bxg8 {[%emt 0:00:00]} Kxg8 {[%emt 0:00:00]} 27. Qe6+ {[%emt 0:00:00]} 1-0

[Event "Asian Amateur Rapid Women 2024"]
[Site "Al Ain"]
[Date "2024.12.15"]
[Round "3.5"]
[White "Joshi, Sindira"]
[Black "Marksim Karki Abirami, Sriiyukthaa"]
[Result "1/2-1/2"]
[ECO "B23"]
[WhiteElo "1735"]
[BlackElo "1466"]
[Annotator "NA RC"]
[PlyCount "110"]
[EventDate "2024.12.15"]
[EventType "swiss"]
[EventCountry "UAE"]
[SourceTitle "playchess.com"]
[Source "ChessBase"]
[SourceQuality "1"]
[TimeControl "900+10"]

1. e4 {[%emt 0:00:01]} c5 {[%emt 0:00:10]} 2. Nc3 {[%emt 0:00:03]} d6 {[%emt 0:00:02]} 3. f4 {[%emt 0:00:03]} Nc6 {[%emt 0:00:03]} 4. Nf3 {[%emt 0:00:03]} Nf6 {[%emt 0:00:03]} 5. Bb5 {[%emt 0:00:14]} g6 {[%emt 0:00:05]} 6. O-O {[%emt 0:00:12]} Bg7 {[%emt 0:00:03]} 7. d3 {[%emt 0:00:08]} O-O {[%emt 0:00:08]} 8. Bxc6 {[%emt 0:00:05]} bxc6 {[%emt 0:00:15]} 9. Qe1 {[%emt 0:00:03]} e6 {[%emt 0:00:09]} 10. Kh1 {[%emt 0:00:08]} Rb8 {[%emt 0:00:04]} 11. Ng5 {[%emt 0:00:35]} h6 {[%emt 0:00:09]} 12. Nf3 {[%emt 0:00:04]} Re8 {[%emt 0:00:20]} 13. Qf2 {[%emt 0:00:18]} Kh7 {[%emt 0:00:20]} 14. e5 {[%emt 0:02:54]} dxe5 {[%emt 0:00:12]} 15. Nxe5 {[%emt 0:00:25]} Qc7 {[%emt 0:00:38]} 16. Qxc5 {[%emt 0:00:19]} Nd7 {[%emt 0:00:08]} 17. Nxd7 {[%emt 0:01:03]} Bxd7 {[%emt 0:00:06]} 18. Rb1 {[%emt 0:00:53]} Qb6 {[%emt 0:00:31]} 19. Be3 {[%emt 0:00:38]} Qxc5 {[%emt 0:00:38]} 20. Bxc5 {[%emt 0:00:04]} Rb7 {[%emt 0:00:07]} 21. d4 {[%emt 0:00:28]} Reb8 {[%emt 0:00:28]} 22. b3 {[%emt 0:00:15]} Be8 {[%emt 0:00:17]} 23. Ne4 {[%emt 0:00:22]} Rd7 {[%emt 0:00:16]} 24. c3 {[%emt 0:01:10]} f5 {[%emt 0:00:24]} 25. Nd2 {[%emt 0:00:26]} Rd5 {[%emt 0:00:35]} 26. Nc4 {[%emt 0:00:32]} Bd7 {[%emt 0:00:22]} 27. Ne5 {[%emt 0:00:08]} Bxe5 {[%emt 0:00:10]} 28. fxe5 {[%emt 0:00:08]} Bc8 {[%emt 0:00:08]} 29. Bd6 {[%emt 0:00:25]} Ra8 {[%emt 0:00:05]} 30. Rfd1 {[%emt 0:00:31]} Ba6 {[%emt 0:00:39]} 31. c4 {[%emt 0:00:14]} Ra5 {[%emt 0:00:03]} 32. Bb4 {[%emt 0:00:18]} Rxa2 {[%emt 0:00:07]} 33. Ra1 {[%emt 0:00:22]} Rxa1 {[%emt 0:00:08]} 34. Rxa1 {[%emt 0:00:03]} Bb7 {[%emt 0:00:18]} 35. h3 {[%emt 0:00:05]} a6 {[%emt 0:00:08]} 36. Bc5 {[%emt 0:00:24]} Bc8 {[%emt 0:00:16]} 37. b4 {[%emt 0:00:15]} Rb8 {[%emt 0:00:06]} 38. Rf1 {[%emt 0:00:36]} g5 {[%emt 0:00:05]} 39. Rd1 {[%emt 0:00:23]} f4 {[%emt 0:00:05]} 40. d5 {[%emt 0:00:17]} cxd5 {[%emt 0:00:27]} 41. cxd5 {[%emt 0:00:03]} exd5 {[%emt 0:00:05]} 42. Rxd5 {[%emt 0:00:03]} Kg7 {[%emt 0:00:29]} 43. Rd6 {[%emt 0:00:10]} Rb7 {[%emt 0:00:21]} 44. Rxa6 {[%emt 0:00:23]} Rxb4 {[%emt 0:00:02]} 45. Ra7+ {[%emt 0:00:26]} Rb7 {[%emt 0:00:03]} 46. Ra1 {[%emt 0:00:31]} Kf7 {[%emt 0:00:11]} 47. Bd6 {[%emt 0:00:10]} Ke6 {[%emt 0:00:13]} 48. Rc1 {[%emt 0:00:07]} Bd7 {[%emt 0:00:06]} 49. Rc7 {[%emt 0:00:13]} Rxc7 {[%emt 0:00:04]} 50. Bxc7 {[%emt 0:00:02]} Kd5 {[%emt 0:00:10]} 51. Kg1 {[%emt 0:00:03]} f3 {[%emt 0:00:01]} 52. gxf3 {[%emt 0:00:06]} Bxh3 {[%emt 0:00:02]} 53. Kf2 {[%emt 0:00:03]} h5 {[%emt 0:00:18]} 54. Kg3 {[%emt 0:00:05]} Be6 {[%emt 0:00:03]} 55. Bd6 {[%emt 0:00:04]} g4 {[%emt 0:00:10]} 1/2-1/2

[Event "Asian Amateur Rapid Women 2024"]
[Site "Al Ain"]
[Date "2024.12.15"]
[Round "3.6"]
[White "Sananda R"]
[Black "Rowdah Ghalib Alafeefi"]
[Result "1-0"]
[ECO "C54"]
[WhiteElo "1696"]
[BlackElo "1450"]
[Annotator "NA RC"]
[PlyCount "73"]
[EventDate "2024.12.15"]
[EventType "swiss"]
[EventCountry "UAE"]
[SourceTitle "playchess.com"]
[Source "ChessBase"]
[SourceQuality "1"]
[TimeControl "900+10"]

1. e4 {[%emt 0:00:01]} e5 {[%emt 0:00:33]} 2. Nf3 {[%emt 0:00:11]} Nc6 {[%emt 0:00:01]} 3. Bc4 {[%emt 0:00:02]} Bc5 {[%emt 0:00:09]} 4. c3 {[%emt 0:00:01]} Nf6 {[%emt 0:00:21]} 5. d3 {[%emt 0:00:03]} a6 {[%emt 0:00:18]} 6. b4 {[%emt 0:00:12]} Ba7 {[%emt 0:00:24]} 7. Nbd2 {[%emt 0:00:16]} h6 {[%emt 0:00:35]} 8. h3 {[%emt 0:00:06]} O-O {[%emt 0:00:48]} 9. Nf1 {[%emt 0:00:10]} d6 {[%emt 0:00:15]} 10. Ng3 {[%emt 0:00:04]} Be6 {[%emt 0:00:09]} 11. Bxe6 {[%emt 0:00:36]} fxe6 {[%emt 0:13:27]} 12. O-O {[%emt 0:00:06]} Qe8 {[%emt 0:00:00]} 13. Be3 {[%emt 0:00:44]} Nh5 {[%emt 0:00:00]} 14. Bxa7 {[%emt 0:00:55]} Rxa7 {[%emt 0:00:00]} 15. Qb3 {[%emt 0:00:04]} Qg6 {[%emt 0:00:00]} 16. Nxh5 {[%emt 0:00:06]} Rxf3 {[%emt 0:00:00]} 17. Ng3 {[%emt 0:01:16]} Rf6 {[%emt 0:00:00]} 18. Qd1 {[%emt 0:00:57]} Ra8 {[%emt 0:00:00]} 19. Qe2 {[%emt 0:01:16]} Raf8 {[%emt 0:00:00]} 20. a4 {[%emt 0:00:09]} b6 {[%emt 0:00:00]} 21. b5 {[%emt 0:00:10]} axb5 {[%emt 0:01:40]} 22. axb5 {[%emt 0:00:01]} Na5 {[%emt 0:00:00]} 23. Kh2 {[%emt 0:01:53]} Qe8 {[%emt 0:00:00]} 24. Rab1 {[%emt 0:00:30]} Qd7 {[%emt 0:00:00]} 25. f3 {[%emt 0:00:20]} Ra8 {[%emt 0:00:00]} 26. c4 {[%emt 0:00:56]} Rff8 {[%emt 0:00:00]} 27. Rf2 {[%emt 0:00:25]} Ra7 {[%emt 0:00:00]} 28. Qe3 {[%emt 0:00:31]} Rfa8 {[%emt 0:00:00]} 29. f4 {[%emt 0:00:13]} exf4 {[%emt 0:01:20]} 30. Qxf4 {[%emt 0:01:17]} e5 {[%emt 0:00:00]} 31. Qh4 {[%emt 0:00:43]} Nb7 {[%emt 0:00:00]} 32. Nf5 {[%emt 0:00:11]} Nc5 {[%emt 0:00:00]} 33. Qg3 {[%emt 0:01:09]} Ra3 {[%emt 0:00:00]} 34. Rf3 {[%emt 0:00:10]} Rc3 {[%emt 0:00:00]} 35. Nxh6+ {[%emt 0:00:04]} Kh8 {[%emt 0:00:00]} 36. Rf7 {[%emt 0:00:00]} Qxf7 {[%emt 0:00:00]} 37. Nxf7+ {[%emt 0:00:00]} 1-0

[Event "Asian Amateur Rapid Women 2024"]
[Site "Al Ain"]
[Date "2024.12.15"]
[Round "3.7"]
[White "Saeidpour, Mona"]
[Black "Sabirova, Shakhnoza"]
[Result "0-1"]
[ECO "D59"]
[WhiteElo "1905"]
[BlackElo "1903"]
[Annotator "RC"]
[PlyCount "96"]
[EventDate "2024.12.15"]
[EventType "swiss"]
[EventCountry "UAE"]
[SourceTitle "playchess.com"]
[Source "ChessBase"]
[SourceQuality "1"]
[TimeControl "900+10"]

1. d4 {[%emt 0:00:02]} Nf6 {[%emt 0:00:04]} 2. c4 {[%emt 0:00:00]} e6 {[%emt 0:00:03]} 3. Nc3 {[%emt 0:00:01]} d5 {[%emt 0:00:02]} 4. Bg5 {[%emt 0:00:01]} Be7 {[%emt 0:00:07]} 5. e3 {[%emt 0:00:02]} h6 {[%emt 0:00:30]} 6. Bh4 {[%emt 0:00:01]} O-O {[%emt 0:00:07]} 7. Nf3 {[%emt 0:00:05]} b6 {[%emt 0:00:03]} 8. cxd5 {[%emt 0:00:02]} Nxd5 {[%emt 0:00:20]} 9. Bxe7 {[%emt 0:00:30]} Qxe7 {[%emt 0:00:04]} 10. Nxd5 {[%emt 0:00:20]} exd5 {[%emt 0:00:02]} 11. Bd3 {[%emt 0:00:55]} Be6 {[%emt 0:00:21]} 12. O-O {[%emt 0:00:27]} Nd7 {[%emt 0:00:12]} 13. Rc1 {[%emt 0:00:57]} c5 {[%emt 0:00:12]} 14. dxc5 {[%emt 0:00:49]} bxc5 {[%emt 0:00:11]} 15. Bb1 {[%emt 0:00:52]} Qf6 {[%emt 0:01:06]} 16. Qc2 {[%emt 0:00:39]} g6 {[%emt 0:00:03]} 17. Qd2 {[%emt 0:00:55]} Rab8 {[%emt 0:02:07]} 18. b3 {[%emt 0:00:21]} h5 {[%emt 0:01:32]} 19. Qc3 {[%emt 0:01:27]} Qg7 {[%emt 0:01:50]} 20. Rfd1 {[%emt 0:03:08]} f6 {[%emt 0:00:43]} 21. Qd3 {[%emt 0:00:38]} g5 {[%emt 0:00:45]} 22. Qa6 {[%emt 0:02:31]} Rb6 {[%emt 0:00:20]} 23. Qxa7 {[%emt 0:00:11]} Rfb8 {[%emt 0:00:35]} 24. Qc7 {[%emt 0:00:40]} h4 {[%emt 0:00:25]} 25. Qa7 {[%emt 0:02:07]} h3 {[%emt 0:00:56]} 26. g3 {[%emt 0:00:11]} Bg4 {[%emt 0:00:42]} 27. Rxd5 {[%emt 0:00:54]} R6b7 {[%emt 0:00:05]} 28. Qa6 {[%emt 0:00:45]} Bxf3 {[%emt 0:01:31]} 29. Rd6 {[%emt 0:00:02]} Qe7 {[%emt 0:02:15]} 30. Qd3 {[%emt 0:00:24]} Ne5 {[%emt 0:00:15]} 31. Qd2 {[%emt 0:00:02]} Bg2 {[%emt 0:00:20]} 32. Be4 {[%emt 0:00:13]} Bxe4 {[%emt 0:00:09]} 33. Kf1 {[%emt 0:00:04]} Bg2+ {[%emt 0:00:05]} 34. Ke2 {[%emt 0:00:02]} Bf3+ {[%emt 0:00:25]} 35. Ke1 {[%emt 0:00:04]} Be4 {[%emt 0:00:12]} 36. Kd1 {[%emt 0:00:22]} Rd7 {[%emt 0:00:56]} 37. Rxd7 {[%emt 0:00:11]} Qxd7 {[%emt 0:00:07]} 38. Rxc5 {[%emt 0:00:02]} Nd3 {[%emt 0:00:19]} 39. Rc4 {[%emt 0:00:20]} Bf3+ {[%emt 0:00:40]} 40. Kc2 {[%emt 0:00:08]} Nb4+ {[%emt 0:00:30]} 41. Kc3 {[%emt 0:00:09]} Qxd2+ {[%emt 0:00:21]} 42. Kxd2 {[%emt 0:00:01]} Nxa2 {[%emt 0:00:06]} 43. Ra4 {[%emt 0:00:12]} Nb4 {[%emt 0:00:10]} 44. Ra7 {[%emt 0:00:17]} Nc6 {[%emt 0:00:02]} 45. Ra3 {[%emt 0:00:03]} Ne5 {[%emt 0:00:10]} 46. Kc3 {[%emt 0:00:06]} Ng4 {[%emt 0:00:06]} 47. Ra6 {[%emt 0:00:04]} Kg7 {[%emt 0:00:07]} 48. b4 {[%emt 0:00:13]} Nxh2 {[%emt 0:00:06]} 0-1

[Event "Asian Amateur Rapid Women 2024"]
[Site "Al Ain"]
[Date "2024.12.15"]
[Round "3.9"]
[White "Daneshpour, Aram"]
[Black "Al Khoori, Noora Mahmood Abdull"]
[Result "1-0"]
[ECO "C56"]
[WhiteElo "1563"]
[BlackElo "1513"]
[Annotator "NA RC"]
[PlyCount "71"]
[EventDate "2024.12.15"]
[EventType "swiss"]
[EventCountry "UAE"]
[SourceTitle "playchess.com"]
[Source "ChessBase"]
[SourceQuality "1"]
[TimeControl "900+10"]

1. e4 {[%emt 0:00:02]} e5 {[%emt 0:00:03]} 2. Nf3 {[%emt 0:00:07]} Nc6 {[%emt 0:00:02]} 3. d4 {[%emt 0:00:02]} exd4 {[%emt 0:00:05]} 4. Bc4 {[%emt 0:00:02]} Nf6 {[%emt 0:00:03]} 5. Ng5 {[%emt 0:00:11]} d5 {[%emt 0:00:32]} 6. exd5 {[%emt 0:00:08]} Ne5 {[%emt 0:04:19]} 7. Bb5+ {[%emt 0:00:46]} Bd7 {[%emt 0:00:14]} 8. Bxd7+ {[%emt 0:00:39]} Qxd7 {[%emt 0:00:19]} 9. Qxd4 {[%emt 0:00:45]} Qxd5 {[%emt 0:01:36]} 10. Qxd5 {[%emt 0:00:59]} Nxd5 {[%emt 0:00:03]} 11. Bd2 {[%emt 0:01:23]} h6 {[%emt 0:01:55]} 12. Ne4 {[%emt 0:00:22]} O-O-O {[%emt 0:00:17]} 13. Nbc3 {[%emt 0:00:15]} Nc4 {[%emt 0:00:22]} 14. Nxd5 {[%emt 0:00:23]} Rxd5 {[%emt 0:00:06]} 15. O-O-O {[%emt 0:00:59]} Be7 {[%emt 0:01:31]} 16. Bc3 {[%emt 0:00:33]} Rxd1+ {[%emt 0:01:05]} 17. Rxd1 {[%emt 0:00:04]} f6 {[%emt 0:00:22]} 18. Ng3 {[%emt 0:01:04]} Bc5 {[%emt 0:01:01]} 19. Bd4 {[%emt 0:00:44]} Bd6 {[%emt 0:01:42]} 20. Nf5 {[%emt 0:01:36]} Rg8 {[%emt 0:00:04]} 21. Nxd6+ {[%emt 0:00:11]} Nxd6 {[%emt 0:00:04]} 22. Bxa7 {[%emt 0:00:16]} Nb5 {[%emt 0:00:29]} 23. Bc5 {[%emt 0:00:36]} b6 {[%emt 0:00:28]} 24. Bb4 {[%emt 0:00:49]} Re8 {[%emt 0:00:18]} 25. a4 {[%emt 0:01:22]} Na7 {[%emt 0:00:01]} 26. Re1 {[%emt 0:00:46]} Rxe1+ {[%emt 0:00:03]} 27. Bxe1 {[%emt 0:00:02]} Nc6 {[%emt 0:00:02]} 28. Bc3 {[%emt 0:00:22]} Kd7 {[%emt 0:00:07]} 29. Kd2 {[%emt 0:00:03]} Kd6 {[%emt 0:00:01]} 30. b4 {[%emt 0:01:09]} Kd5 {[%emt 0:00:29]} 31. Kd3 {[%emt 0:00:25]} Nd8 {[%emt 0:00:44]} 32. a5 {[%emt 0:00:47]} bxa5 {[%emt 0:00:02]} 33. bxa5 {[%emt 0:00:02]} Nc6 {[%emt 0:00:24]} 34. a6 {[%emt 0:01:32]} Kc5 {[%emt 0:00:02]} 35. Bd4+ {[%emt 0:00:59]} Nxd4 {[%emt 0:00:03]} 36. a7 {[%emt 0:00:03]} 1-0

[Event "Asian Amateur Rapid Women 2024"]
[Site "Al Ain"]
[Date "2024.12.15"]
[Round "3.10"]
[White "Mera Abdulaziz Aidarous"]
[Black "Bhandari, Pooja"]
[Result "1-0"]
[ECO "C02"]
[WhiteElo "1584"]
[BlackElo "1684"]
[Annotator "NA RC"]
[PlyCount "73"]
[EventDate "2024.12.15"]
[EventType "swiss"]
[EventCountry "UAE"]
[SourceTitle "playchess.com"]
[Source "ChessBase"]
[SourceQuality "1"]
[TimeControl "900+10"]

1. e4 {[%emt 0:00:18]} e6 {[%emt 0:00:06]} 2. d4 {[%emt 0:00:03]} d5 {[%emt 0:00:02]} 3. e5 {[%emt 0:00:02]} c5 {[%emt 0:00:04]} 4. c3 {[%emt 0:00:02]} Qb6 {[%emt 0:00:09]} 5. a3 {[%emt 0:00:08]} Bd7 {[%emt 0:00:08]} 6. Nf3 {[%emt 0:00:05]} Bb5 {[%emt 0:00:07]} 7. Bd3 {[%emt 0:00:59]} Bxd3 {[%emt 0:00:11]} 8. Qxd3 {[%emt 0:00:03]} Nc6 {[%emt 0:00:40]} 9. b4 {[%emt 0:00:11]} cxd4 {[%emt 0:00:48]} 10. cxd4 {[%emt 0:00:08]} Nge7 {[%emt 0:01:34]} 11. O-O {[%emt 0:00:27]} Ng6 {[%emt 0:00:42]} 12. Nc3 {[%emt 0:00:38]} Be7 {[%emt 0:00:33]} 13. Na4 {[%emt 0:00:44]} Qc7 {[%emt 0:00:37]} 14. Be3 {[%emt 0:01:01]} O-O {[%emt 0:00:10]} 15. Rfc1 {[%emt 0:00:41]} Qd8 {[%emt 0:00:54]} 16. Rc2 {[%emt 0:01:41]} Qe8 {[%emt 0:01:16]} 17. Nc5 {[%emt 0:01:12]} b6 {[%emt 0:01:03]} 18. Na6 {[%emt 0:00:07]} Qd7 {[%emt 0:01:07]} 19. Rac1 {[%emt 0:00:44]} Rac8 {[%emt 0:00:16]} 20. Qb5 {[%emt 0:00:21]} f6 {[%emt 0:05:33]} 21. Rxc6 {[%emt 0:01:41]} Kf7 {[%emt 0:01:38]} 22. a4 {[%emt 0:00:34]} fxe5 {[%emt 0:01:12]} 23. dxe5 {[%emt 0:00:25]} Rxc6 {[%emt 0:00:00]} 24. Qxc6 {[%emt 0:00:06]} Qxc6 {[%emt 0:00:00]} 25. Rxc6 {[%emt 0:00:04]} Rd8 {[%emt 0:00:00]} 26. Rc7 {[%emt 0:00:28]} h6 {[%emt 0:00:19]} 27. Rxa7 {[%emt 0:00:09]} Rc8 {[%emt 0:00:07]} 28. Rc7 {[%emt 0:00:09]} Ra8 {[%emt 0:00:04]} 29. b5 {[%emt 0:00:09]} Kf8 {[%emt 0:00:05]} 30. Bxb6 {[%emt 0:00:06]} Bd8 {[%emt 0:00:09]} 31. Rc6 {[%emt 0:00:15]} Bxb6 {[%emt 0:00:08]} 32. Rxb6 {[%emt 0:00:03]} Rc8 {[%emt 0:00:04]} 33. Rb8 {[%emt 0:00:14]} Ne7 {[%emt 0:00:18]} 34. Rxc8+ {[%emt 0:00:11]} Nxc8 {[%emt 0:00:02]} 35. a5 {[%emt 0:00:16]} Na7 {[%emt 0:00:18]} 36. Nd4 {[%emt 0:00:07]} Ke7 {[%emt 0:00:05]} 37. b6 {[%emt 0:00:13]} 1-0

[Event "Asian Amateur Rapid Women 2024"]
[Site "Al Ain"]
[Date "2024.12.15"]
[Round "3.12"]
[White "Zhumabek, Nursaya"]
[Black "Prakash, Sadhana"]
[Result "1-0"]
[ECO "A07"]
[WhiteElo "1448"]
[BlackElo "1408"]
[Annotator "NA RC"]
[PlyCount "79"]
[EventDate "2024.12.15"]
[EventType "swiss"]
[EventCountry "UAE"]
[SourceTitle "playchess.com"]
[Source "ChessBase"]
[SourceQuality "1"]
[TimeControl "900+10"]

1. Nf3 {[%emt 0:00:01]} d5 {[%emt 0:00:01]} 2. g3 {[%emt 0:00:02]} Bf5 {[%emt 0:00:02]} 3. Bg2 {[%emt 0:00:04]} e6 {[%emt 0:00:04]} 4. O-O {[%emt 0:00:04]} Nf6 {[%emt 0:00:03]} 5. Nc3 {[%emt 0:00:01]} Bd6 {[%emt 0:00:02]} 6. d3 {[%emt 0:00:03]} O-O {[%emt 0:00:12]} 7. Re1 {[%emt 0:00:10]} e5 {[%emt 0:01:11]} 8. Bg5 {[%emt 0:00:08]} d4 {[%emt 0:00:34]} 9. Nd5 {[%emt 0:00:38]} Nbd7 {[%emt 0:00:17]} 10. Nh4 {[%emt 0:00:38]} Be6 {[%emt 0:00:43]} 11. Nxf6+ {[%emt 0:00:06]} Nxf6 {[%emt 0:00:06]} 12. c3 {[%emt 0:02:03]} c6 {[%emt 0:02:53]} 13. cxd4 {[%emt 0:00:56]} exd4 {[%emt 0:00:37]} 14. Nf3 {[%emt 0:00:06]} Bc5 {[%emt 0:00:51]} 15. Nd2 {[%emt 0:00:55]} h6 {[%emt 0:00:14]} 16. Bxf6 {[%emt 0:00:05]} Qxf6 {[%emt 0:00:03]} 17. Ne4 {[%emt 0:00:11]} Qe7 {[%emt 0:00:25]} 18. Nxc5 {[%emt 0:01:52]} Qxc5 {[%emt 0:00:04]} 19. a3 {[%emt 0:00:07]} a5 {[%emt 0:00:13]} 20. Rc1 {[%emt 0:00:30]} Qb6 {[%emt 0:00:26]} 21. Qc2 {[%emt 0:00:40]} Rfc8 {[%emt 0:01:08]} 22. Qd2 {[%emt 0:01:26]} Re8 {[%emt 0:00:51]} 23. Rb1 {[%emt 0:00:55]} Ba2 {[%emt 0:00:26]} 24. Rbc1 {[%emt 0:00:27]} Bb3 {[%emt 0:00:12]} 25. e3 {[%emt 0:01:40]} dxe3 {[%emt 0:00:14]} 26. fxe3 {[%emt 0:00:11]} Rad8 {[%emt 0:00:46]} 27. d4 {[%emt 0:00:08]} c5 {[%emt 0:00:31]} 28. dxc5 {[%emt 0:00:29]} Rxd2 {[%emt 0:00:07]} 29. cxb6 {[%emt 0:00:02]} Rxb2 {[%emt 0:00:12]} 30. Rb1 {[%emt 0:00:34]} Rxb1 {[%emt 0:00:06]} 31. Rxb1 {[%emt 0:00:01]} a4 {[%emt 0:00:03]} 32. Bxb7 {[%emt 0:00:08]} Rb8 {[%emt 0:00:12]} 33. Bc6 {[%emt 0:00:19]} Rxb6 {[%emt 0:00:03]} 34. Bxa4 {[%emt 0:00:03]} Bxa4 {[%emt 0:00:17]} 35. Rxb6 {[%emt 0:00:02]} Bd7 {[%emt 0:00:03]} 36. Ra6 {[%emt 0:00:02]} Bb5 {[%emt 0:00:02]} 37. Ra8+ {[%emt 0:00:02]} Kh7 {[%emt 0:00:02]} 38. a4 {[%emt 0:00:01]} Bc6 {[%emt 0:00:00]} 39. Ra7 {[%emt 0:00:02]} Kg6 {[%emt 0:00:03]} 40. Ra6 {[%emt 0:00:02]} 1-0